[Event "Titled Tuesday Blitz July 11 Late 2023"]
[White "Swayams, Mishra"]
[Black "Andreikin, Dmitry"]
[WhiteFideId "5028183"]
[BlackFideId "4158814"]
[WhiteElo "2570"]
[BlackElo "3012"]
[Result "0-1"]
[Round "2"]
[TimeControl "180+2"]
[Date "2023.07.11"]
[WhiteClock "0:00:00"]
[BlackClock "0:00:30"]
[Board "13"]

1. d4 {[%clk 0:03:00]}  g6 {[%clk 0:02:59]} 2. c4 {[%clk 0:02:57]}  Bg7 {[%clk 0:02:59]} 3. Nc3 {[%clk 0:02:57]}  d6 {[%clk 0:02:57]} 4. Nf3 {[%clk 0:02:54]}  Nf6 {[%clk 0:02:56]} 5. e4 {[%clk 0:02:54]}  O-O {[%clk 0:02:56]} 6. Be2 {[%clk 0:02:53]}  e5 {[%clk 0:02:57]} 7. O-O {[%clk 0:02:54]}  Nc6 {[%clk 0:02:53]} 8. d5 {[%clk 0:02:54]}  Ne7 {[%clk 0:02:53]} 9. Ne1 {[%clk 0:02:50]}  a5 {[%clk 0:02:51]} 10. Be3 {[%clk 0:02:49]}  Nd7 {[%clk 0:02:46]} 11. Nd3 {[%clk 0:02:35]}  f5 {[%clk 0:02:46]} 12. f3 {[%clk 0:02:35]}  b6 {[%clk 0:02:44]} 13. b4 {[%clk 0:02:21]}  axb4 {[%clk 0:02:41]} 14. Nxb4 {[%clk 0:02:22]}  Nc5 {[%clk 0:02:37]} 15. Nc6 {[%clk 0:02:15]}  Nxc6 {[%clk 0:02:33]} 16. dxc6 {[%clk 0:02:16]}  Be6 {[%clk 0:02:33]} 17. Nd5 {[%clk 0:02:14]}  fxe4 {[%clk 0:02:30]} 18. Bxc5 {[%clk 0:02:12]}  exf3 {[%clk 0:02:24]} 19. Bxf3 {[%clk 0:02:03]}  dxc5 {[%clk 0:02:01]} 20. Bg4 {[%clk 0:02:01]}  Rxf1+ {[%clk 0:01:42]} 21. Kxf1 {[%clk 0:02:02]}  Bf7 {[%clk 0:01:27]} 22. Qe2 {[%clk 0:01:10]}  Bxd5 {[%clk 0:01:16]} 23. cxd5 {[%clk 0:01:11]}  Qxd5 {[%clk 0:01:10]} 24. Rd1 {[%clk 0:00:46]}  Qxc6 {[%clk 0:01:10]} 25. Bf3 {[%clk 0:00:45]}  Rf8 {[%clk 0:01:08]} 26. Kg1 {[%clk 0:00:23]}  Qa4 {[%clk 0:01:05]} 27. h3 {[%clk 0:00:17]}  Qf4 {[%clk 0:00:59]} 28. Rd7 {[%clk 0:00:16]}  e4 {[%clk 0:00:56]} 29. Qxe4 {[%clk 0:00:15]}  Bd4+ {[%clk 0:00:54]} 30. Kh1 {[%clk 0:00:10]}  Qxe4 {[%clk 0:00:54]} 31. Bxe4 {[%clk 0:00:09]}  Rf1+ {[%clk 0:00:55]} 32. Kh2 {[%clk 0:00:10]}  Be5+ {[%clk 0:00:55]} 33. g3 {[%clk 0:00:10]}  Rf2+ {[%clk 0:00:55]} 34. Kg1 {[%clk 0:00:08]}  Bxg3 {[%clk 0:00:54]} 35. Rd3 {[%clk 0:00:08]}  Bh4 {[%clk 0:00:52]} 36. Rd8+ {[%clk 0:00:08]}  Bxd8 {[%clk 0:00:46]} 37. Kxf2 {[%clk 0:00:08]}  Kf7 {[%clk 0:00:46]} 38. Ke3 {[%clk 0:00:08]}  Bg5+ {[%clk 0:00:45]} 39. Kd3 {[%clk 0:00:05]}  Bf4 {[%clk 0:00:44]} 40. Kc4 {[%clk 0:00:05]}  Ke6 {[%clk 0:00:44]} 41. a4 {[%clk 0:00:05]}  Bd6 {[%clk 0:00:44]} 42. Bd5+ {[%clk 0:00:01]}  Ke5 {[%clk 0:00:42]} 43. Bg8 {[%clk 0:00:02]}  h5 {[%clk 0:00:42]} 44. Bf7 {[%clk 0:00:02]}  Kf6 {[%clk 0:00:42]} 45. Be8 {[%clk 0:00:03]}  Kf5 {[%clk 0:00:39]} 46. Kd5 {[%clk 0:00:04]}  Bf8 {[%clk 0:00:36]} 47. Bf7 {[%clk 0:00:03]}  Bh6 {[%clk 0:00:30]} 48. Be8 {[%clk 0:00:04]}  Bd2 {[%clk 0:00:31]} 49. Bf7 {[%clk 0:00:03]}  Ba5 {[%clk 0:00:32]} 50. Be8 {[%clk 0:00:04]}  c6+ {[%clk 0:00:28]} 51. Bxc6 {[%clk 0:00:01]}  g5 {[%clk 0:00:28]} 52. Be8 {[%clk 0:00:01]}  g4 {[%clk 0:00:28]} 53. hxg4+ {[%clk 0:00:01]}  hxg4 {[%clk 0:00:28]} 54. Bd7+ {[%clk 0:00:02]}  Kf4 {[%clk 0:00:28]} 55. Kc4 {[%clk 0:00:02]}  g3 {[%clk 0:00:28]} 56. Bc6 {[%clk 0:00:03]}  Ke3 {[%clk 0:00:28]} 57. Kb5 {[%clk 0:00:02]}  Kf2 {[%clk 0:00:29]} 58. Bd5 {[%clk 0:00:03]}  g2 {[%clk 0:00:29]} 59. Bxg2 {[%clk 0:00:00]}  Kxg2 {[%clk 0:00:30]} 0-1


[Site "https://www.chess.com"]

[Event "Titled Tuesday Blitz July 11 Late 2023"]
[White "Siniauski, Artsiom"]
[Black "He, Anthony"]
[WhiteFideId "13512269"]
[BlackFideId "2088215"]
[WhiteElo "2566"]
[BlackElo "2991"]
[Result "0-1"]
[Round "2"]
[TimeControl "180+2"]
[Date "2023.07.11"]
[WhiteClock "0:00:01"]
[BlackClock "0:01:59"]
[Board "16"]

1. e4 {[%clk 0:02:49]}  e5 {[%clk 0:02:59]} 2. Nf3 {[%clk 0:02:47]}  Nc6 {[%clk 0:03:00]} 3. Bb5 {[%clk 0:02:46]}  a6 {[%clk 0:02:59]} 4. Ba4 {[%clk 0:02:46]}  Nf6 {[%clk 0:02:59]} 5. Bxc6 {[%clk 0:02:47]}  dxc6 {[%clk 0:02:59]} 6. d3 {[%clk 0:02:48]}  Bd6 {[%clk 0:02:58]} 7. b3 {[%clk 0:02:47]}  O-O {[%clk 0:02:58]} 8. Bb2 {[%clk 0:02:48]}  Qe7 {[%clk 0:02:57]} 9. Nbd2 {[%clk 0:02:48]}  Nd7 {[%clk 0:02:56]} 10. Nc4 {[%clk 0:02:48]}  Bb4+ {[%clk 0:02:54]} 11. c3 {[%clk 0:02:45]}  Bc5 {[%clk 0:02:54]} 12. Qd2 {[%clk 0:02:45]}  f6 {[%clk 0:02:54]} 13. O-O-O {[%clk 0:02:42]}  a5 {[%clk 0:02:51]} 14. d4 {[%clk 0:02:35]}  exd4 {[%clk 0:02:48]} 15. cxd4 {[%clk 0:02:36]}  Bb4 {[%clk 0:02:48]} 16. Qe3 {[%clk 0:02:29]}  b5 {[%clk 0:02:45]} 17. Ncd2 {[%clk 0:02:26]}  a4 {[%clk 0:02:44]} 18. Kc2 {[%clk 0:02:23]}  c5 {[%clk 0:02:40]} 19. d5 {[%clk 0:02:09]}  Nb6 {[%clk 0:02:39]} 20. Rhe1 {[%clk 0:01:42]}  Re8 {[%clk 0:02:37]} 21. Kd3 {[%clk 0:01:24]}  axb3 {[%clk 0:02:35]} 22. axb3 {[%clk 0:01:23]}  Ra2 {[%clk 0:02:35]} 23. Rb1 {[%clk 0:01:23]}  c4+ {[%clk 0:02:35]} 24. Ke2 {[%clk 0:01:17]}  Rxb2 {[%clk 0:02:34]} 25. Rxb2 {[%clk 0:01:11]}  c3 {[%clk 0:02:34]} 26. Rc2 {[%clk 0:01:09]}  cxd2 {[%clk 0:02:34]} 27. Nxd2 {[%clk 0:01:06]}  Nxd5 {[%clk 0:02:30]} 28. Qd4 {[%clk 0:00:51]}  Nf4+ {[%clk 0:02:28]} 29. Kf1 {[%clk 0:00:51]}  c5 {[%clk 0:02:28]} 30. Qe3 {[%clk 0:00:47]}  Ne6 {[%clk 0:02:28]} 31. f3 {[%clk 0:00:34]}  Bb7 {[%clk 0:02:28]} 32. Ra2 {[%clk 0:00:33]}  Rd8 {[%clk 0:02:28]} 33. Re2 {[%clk 0:00:31]}  Qd6 {[%clk 0:02:27]} 34. e5 {[%clk 0:00:18]}  fxe5 {[%clk 0:02:27]} 35. Qxe5 {[%clk 0:00:19]}  Qxe5 {[%clk 0:02:21]} 36. Rxe5 {[%clk 0:00:19]}  Nf4 {[%clk 0:02:21]} 37. Re7 {[%clk 0:00:11]}  Bd5 {[%clk 0:02:16]} 38. Ne4 {[%clk 0:00:06]}  Bxb3 {[%clk 0:02:01]} 39. Raa7 {[%clk 0:00:06]}  Bc4+ {[%clk 0:02:01]} 40. Kf2 {[%clk 0:00:05]}  Ne6 {[%clk 0:02:02]} 41. Kg3 {[%clk 0:00:03]}  Bd5 {[%clk 0:02:00]} 42. Kh3 {[%clk 0:00:02]}  c4 {[%clk 0:02:00]} 43. Rac7 {[%clk 0:00:01]}  Nxc7 {[%clk 0:01:59]} 0-1


[Site "https://www.chess.com"]

[Event "Titled Tuesday Blitz July 11 Late 2023"]
[White "Bruedigam, Martin"]
[Black "Van Foreest, Jorden"]
[WhiteFideId "24608033"]
[BlackFideId "1039784"]
[WhiteElo "2554"]
[BlackElo "2974"]
[Result "0-1"]
[Round "2"]
[TimeControl "180+2"]
[Date "2023.07.11"]
[WhiteClock "0:00:01"]
[BlackClock "0:00:50"]
[Board "21"]

1. e4 {[%clk 0:03:00]}  e5 {[%clk 0:02:58]} 2. Nf3 {[%clk 0:03:01]}  Nc6 {[%clk 0:02:58]} 3. Bc4 {[%clk 0:03:01]}  Bc5 {[%clk 0:02:57]} 4. c3 {[%clk 0:03:01]}  Nf6 {[%clk 0:02:57]} 5. d3 {[%clk 0:03:01]}  d6 {[%clk 0:02:57]} 6. O-O {[%clk 0:02:59]}  a6 {[%clk 0:02:57]} 7. a4 {[%clk 0:02:58]}  Ba7 {[%clk 0:02:58]} 8. Nbd2 {[%clk 0:02:55]}  h6 {[%clk 0:02:57]} 9. Re1 {[%clk 0:02:54]}  O-O {[%clk 0:02:55]} 10. h3 {[%clk 0:02:53]}  Ne7 {[%clk 0:02:54]} 11. Nf1 {[%clk 0:02:51]}  Ng6 {[%clk 0:02:54]} 12. Ng3 {[%clk 0:02:51]}  c6 {[%clk 0:02:55]} 13. Bb3 {[%clk 0:02:48]}  d5 {[%clk 0:02:55]} 14. exd5 {[%clk 0:02:45]}  Nxd5 {[%clk 0:02:56]} 15. d4 {[%clk 0:02:39]}  exd4 {[%clk 0:02:56]} 16. Nxd4 {[%clk 0:02:40]}  Be6 {[%clk 0:02:57]} 17. Be3 {[%clk 0:02:12]}  Nxe3 {[%clk 0:02:55]} 18. Rxe3 {[%clk 0:01:55]}  Bxb3 {[%clk 0:02:55]} 19. Qxb3 {[%clk 0:01:52]}  c5 {[%clk 0:02:55]} 20. Ndf5 {[%clk 0:01:08]}  c4 {[%clk 0:02:55]} 21. Qxc4 {[%clk 0:01:09]}  Bxe3 {[%clk 0:02:55]} 22. Nxe3 {[%clk 0:01:10]}  Rc8 {[%clk 0:02:56]} 23. Qg4 {[%clk 0:01:09]}  Qg5 {[%clk 0:02:54]} 24. Qf3 {[%clk 0:01:08]}  Rc7 {[%clk 0:02:39]} 25. Nd5 {[%clk 0:01:07]}  Rd7 {[%clk 0:02:39]} 26. c4 {[%clk 0:01:07]}  Ne5 {[%clk 0:02:38]} 27. Qd1 {[%clk 0:00:25]}  Qd8 {[%clk 0:02:17]} 28. b3 {[%clk 0:00:25]}  b5 {[%clk 0:02:18]} 29. axb5 {[%clk 0:00:25]}  axb5 {[%clk 0:02:19]} 30. Nf5 {[%clk 0:00:19]}  bxc4 {[%clk 0:02:16]} 31. bxc4 {[%clk 0:00:20]}  Qg5 {[%clk 0:01:59]} 32. g4 {[%clk 0:00:15]}  Nxc4 {[%clk 0:01:47]} 33. Qd4 {[%clk 0:00:10]}  Nd6 {[%clk 0:00:52]} 34. f4 {[%clk 0:00:10]}  Nxf5 {[%clk 0:00:52]} 35. Qa4 {[%clk 0:00:01]}  Qd8 {[%clk 0:00:50]} 0-1


[Site "https://www.chess.com"]

[Event "Titled Tuesday Blitz July 11 Late 2023"]
[White "Sviridov, Valery"]
[Black "Przybylski, Wojciech"]
[WhiteFideId "4120680"]
[BlackFideId "1117599"]
[WhiteElo "2971"]
[BlackElo "2551"]
[Result "1-0"]
[Round "2"]
[TimeControl "180+2"]
[Date "2023.07.11"]
[WhiteClock "0:01:28"]
[BlackClock "0:00:31"]
[Board "22"]

1. d4 {[%clk 0:03:00]}  d5 {[%clk 0:02:56]} 2. Nc3 {[%clk 0:03:00]}  c6 {[%clk 0:02:57]} 3. Bf4 {[%clk 0:03:00]}  Nf6 {[%clk 0:02:56]} 4. e3 {[%clk 0:02:59]}  Bf5 {[%clk 0:02:55]} 5. Nf3 {[%clk 0:02:59]}  Nbd7 {[%clk 0:02:54]} 6. Bd3 {[%clk 0:02:58]}  e6 {[%clk 0:02:54]} 7. h3 {[%clk 0:02:52]}  Bb4 {[%clk 0:02:53]} 8. g4 {[%clk 0:02:52]}  Ne4 {[%clk 0:02:36]} 9. gxf5 {[%clk 0:02:49]}  Nxc3 {[%clk 0:02:36]} 10. Qd2 {[%clk 0:02:25]}  Qa5 {[%clk 0:02:20]} 11. a3 {[%clk 0:02:26]}  c5 {[%clk 0:02:08]} 12. O-O {[%clk 0:02:23]}  Ne4 {[%clk 0:02:03]} 13. axb4 {[%clk 0:02:21]}  Nxd2 {[%clk 0:01:45]} 14. Rxa5 {[%clk 0:02:20]}  Nxf3+ {[%clk 0:01:41]} 15. Kg2 {[%clk 0:02:21]}  c4 {[%clk 0:01:35]} 16. Kxf3 {[%clk 0:02:19]}  cxd3 {[%clk 0:01:34]} 17. cxd3 {[%clk 0:02:18]}  b6 {[%clk 0:01:31]} 18. Ra6 {[%clk 0:02:16]}  exf5 {[%clk 0:01:29]} 19. Rfa1 {[%clk 0:02:15]}  Ke7 {[%clk 0:01:26]} 20. Rxa7 {[%clk 0:02:15]}  Rxa7 {[%clk 0:01:26]} 21. Rxa7 {[%clk 0:02:16]}  Rc8 {[%clk 0:01:25]} 22. Bc7 {[%clk 0:02:14]}  Ke6 {[%clk 0:01:23]} 23. b5 {[%clk 0:02:12]}  g5 {[%clk 0:01:20]} 24. Rb7 {[%clk 0:02:11]}  h5 {[%clk 0:01:14]} 25. b4 {[%clk 0:01:37]}  h4 {[%clk 0:01:05]} 26. Bxb6 {[%clk 0:01:33]}  Rc2 {[%clk 0:00:58]} 27. Bc5 {[%clk 0:01:31]}  Rc1 {[%clk 0:00:35]} 28. Rc7 {[%clk 0:01:29]}  Rg1 {[%clk 0:00:31]} 29. Rc6# {[%clk 0:01:28]} 1-0


[Site "https://www.chess.com"]

[Event "Titled Tuesday Blitz July 11 Late 2023"]
[White "Thorfinnsson, Bragi"]
[Black "Zakhartsov, Vladimir"]
[WhiteFideId "2300958"]
[BlackFideId "4145097"]
[WhiteElo "2545"]
[BlackElo "2934"]
[Result "0-1"]
[Round "2"]
[TimeControl "180+2"]
[Date "2023.07.11"]
[WhiteClock "0:00:00"]
[BlackClock "0:01:51"]
[Board "26"]

1. e4 {[%clk 0:03:00]}  c5 {[%clk 0:02:56]} 2. Nf3 {[%clk 0:03:00]}  d6 {[%clk 0:02:56]} 3. Bb5+ {[%clk 0:02:51]}  Nd7 {[%clk 0:02:43]} 4. a4 {[%clk 0:02:47]}  Nf6 {[%clk 0:02:42]} 5. O-O {[%clk 0:02:44]}  a6 {[%clk 0:02:41]} 6. Bc4 {[%clk 0:02:42]}  Nxe4 {[%clk 0:02:39]} 7. Re1 {[%clk 0:02:31]}  Nef6 {[%clk 0:02:26]} 8. d4 {[%clk 0:02:03]}  d5 {[%clk 0:02:26]} 9. Bf1 {[%clk 0:01:51]}  e6 {[%clk 0:02:25]} 10. Nc3 {[%clk 0:01:47]}  Be7 {[%clk 0:02:19]} 11. dxc5 {[%clk 0:01:37]}  Nxc5 {[%clk 0:02:19]} 12. b3 {[%clk 0:01:33]}  b6 {[%clk 0:02:17]} 13. Bb2 {[%clk 0:01:33]}  Bb7 {[%clk 0:02:17]} 14. Ne2 {[%clk 0:01:13]}  O-O {[%clk 0:02:09]} 15. Ng3 {[%clk 0:01:13]}  Rc8 {[%clk 0:02:07]} 16. Ne5 {[%clk 0:01:11]}  Nce4 {[%clk 0:02:05]} 17. Nxe4 {[%clk 0:01:01]}  Nxe4 {[%clk 0:02:05]} 18. Bd3 {[%clk 0:01:00]}  Bf6 {[%clk 0:02:02]} 19. Qg4 {[%clk 0:00:48]}  Nc5 {[%clk 0:01:56]} 20. Bxh7+ {[%clk 0:00:26]}  Kxh7 {[%clk 0:01:55]} 21. Qh5+ {[%clk 0:00:16]}  Kg8 {[%clk 0:01:54]} 22. Re3 {[%clk 0:00:16]}  Bxe5 {[%clk 0:01:51]} 23. Rh3 {[%clk 0:00:04]}  f6 {[%clk 0:01:51]} 24. Bxe5 {[%clk 0:00:03]}  fxe5 {[%clk 0:01:49]} 25. Qh7+ {[%clk 0:00:02]}  Kf7 {[%clk 0:01:50]} 26. Rf3+ {[%clk 0:00:03]}  Ke7 {[%clk 0:01:50]} 27. Qxg7+ {[%clk 0:00:03]}  Kd6 {[%clk 0:01:51]} 28. Rxf8 {[%clk 0:00:01]}  Qxf8 {[%clk 0:01:51]} 29. b4 {[%clk 0:00:00]}  Qxg7 {[%clk 0:01:51]} 0-1


[Site "https://www.chess.com"]

[Event "Titled Tuesday Blitz July 11 Late 2023"]
[White "Shimanov, Aleksandr"]
[Black "Aggelis, Nikolaos"]
[WhiteFideId "4198603"]
[BlackFideId "4213220"]
[WhiteElo "2928"]
[BlackElo "2539"]
[Result "1-0"]
[Round "2"]
[TimeControl "180+2"]
[Date "2023.07.11"]
[WhiteClock "0:01:46"]
[BlackClock "0:00:31"]
[Board "28"]

1. Nf3 {[%clk 0:03:00]}  f5 {[%clk 0:02:56]} 2. d3 {[%clk 0:02:57]}  Nc6 {[%clk 0:02:49]} 3. d4 {[%clk 0:02:56]}  e6 {[%clk 0:02:45]} 4. c4 {[%clk 0:02:55]}  Nf6 {[%clk 0:02:45]} 5. a3 {[%clk 0:02:54]}  d5 {[%clk 0:02:20]} 6. Nc3 {[%clk 0:02:44]}  Be7 {[%clk 0:02:10]} 7. Bf4 {[%clk 0:02:42]}  Nh5 {[%clk 0:02:05]} 8. Bd2 {[%clk 0:02:35]}  O-O {[%clk 0:02:04]} 9. g3 {[%clk 0:02:21]}  Kh8 {[%clk 0:01:57]} 10. Bg2 {[%clk 0:02:20]}  Nf6 {[%clk 0:01:40]} 11. O-O {[%clk 0:02:18]}  Ne4 {[%clk 0:01:40]} 12. Rc1 {[%clk 0:02:16]}  Nxd2 {[%clk 0:01:26]} 13. Qxd2 {[%clk 0:02:15]}  Na5 {[%clk 0:01:22]} 14. cxd5 {[%clk 0:01:53]}  Nb3 {[%clk 0:01:16]} 15. Qc2 {[%clk 0:01:53]}  Nxc1 {[%clk 0:01:16]} 16. dxe6 {[%clk 0:01:54]}  Bxe6 {[%clk 0:01:13]} 17. Rxc1 {[%clk 0:01:54]}  c6 {[%clk 0:01:13]} 18. e3 {[%clk 0:01:54]}  Qa5 {[%clk 0:01:05]} 19. Ne5 {[%clk 0:01:52]}  Rac8 {[%clk 0:01:02]} 20. h4 {[%clk 0:01:49]}  b6 {[%clk 0:00:45]} 21. Nxc6 {[%clk 0:01:47]}  Rxc6 {[%clk 0:00:38]} 22. Bxc6 {[%clk 0:01:48]}  f4 {[%clk 0:00:38]} 23. exf4 {[%clk 0:01:48]}  Qh5 {[%clk 0:00:35]} 24. Qe2 {[%clk 0:01:46]}  Qf7 {[%clk 0:00:31]} 25. Re1 {[%clk 0:01:46]} 1-0


[Site "https://www.chess.com"]

[Event "Titled Tuesday Blitz July 11 Late 2023"]
[White "Keymer, Vincent"]
[Black "Bilan, Danila"]
[WhiteFideId "12940690"]
[BlackFideId "24161918"]
[WhiteElo "2921"]
[BlackElo "2538"]
[Result "1-0"]
[Round "2"]
[TimeControl "180+2"]
[Date "2023.07.11"]
[WhiteClock "0:01:02"]
[BlackClock "0:00:04"]
[Board "29"]

1. a3 {[%clk 0:03:00]}  d5 {[%clk 0:02:58]} 2. Nf3 {[%clk 0:03:00]}  Nf6 {[%clk 0:02:57]} 3. e3 {[%clk 0:03:00]}  c5 {[%clk 0:02:56]} 4. b4 {[%clk 0:03:00]}  e6 {[%clk 0:02:49]} 5. bxc5 {[%clk 0:03:00]}  Bxc5 {[%clk 0:02:48]} 6. d4 {[%clk 0:03:00]}  Bd6 {[%clk 0:02:45]} 7. c4 {[%clk 0:03:01]}  O-O {[%clk 0:02:41]} 8. Nbd2 {[%clk 0:02:59]}  b6 {[%clk 0:02:39]} 9. Bd3 {[%clk 0:02:54]}  Bb7 {[%clk 0:02:29]} 10. O-O {[%clk 0:02:54]}  Ne4 {[%clk 0:02:27]} 11. Bb2 {[%clk 0:02:47]}  Nd7 {[%clk 0:02:23]} 12. Rc1 {[%clk 0:02:42]}  Rc8 {[%clk 0:02:01]} 13. Qa4 {[%clk 0:02:40]}  Bb8 {[%clk 0:02:01]} 14. cxd5 {[%clk 0:02:35]}  exd5 {[%clk 0:01:43]} 15. Rxc8 {[%clk 0:02:34]}  Qxc8 {[%clk 0:01:40]} 16. Rc1 {[%clk 0:02:35]}  Qd8 {[%clk 0:01:39]} 17. h3 {[%clk 0:02:27]}  Qe7 {[%clk 0:01:20]} 18. Ba6 {[%clk 0:02:20]}  Ba8 {[%clk 0:01:10]} 19. Qb3 {[%clk 0:02:05]}  Qd6 {[%clk 0:01:04]} 20. Qd3 {[%clk 0:01:55]}  h6 {[%clk 0:00:51]} 21. a4 {[%clk 0:01:53]}  Re8 {[%clk 0:00:36]} 22. Bb5 {[%clk 0:01:50]}  Rd8 {[%clk 0:00:33]} 23. Ne5 {[%clk 0:01:40]}  Nxe5 {[%clk 0:00:24]} 24. dxe5 {[%clk 0:01:41]}  Qe7 {[%clk 0:00:21]} 25. f4 {[%clk 0:01:31]}  Nc5 {[%clk 0:00:19]} 26. Qe2 {[%clk 0:01:24]}  Ne6 {[%clk 0:00:18]} 27. Nf3 {[%clk 0:01:23]}  d4 {[%clk 0:00:11]} 28. Nxd4 {[%clk 0:01:22]}  Nxd4 {[%clk 0:00:10]} 29. Bxd4 {[%clk 0:01:23]}  Qe6 {[%clk 0:00:07]} 30. Bc4 {[%clk 0:01:21]}  Bd5 {[%clk 0:00:07]} 31. Bxd5 {[%clk 0:01:20]}  Qxd5 {[%clk 0:00:08]} 32. Qc4 {[%clk 0:01:16]}  Qe4 {[%clk 0:00:08]} 33. Qc6 {[%clk 0:01:13]}  Qd3 {[%clk 0:00:08]} 34. e6 {[%clk 0:01:10]}  fxe6 {[%clk 0:00:06]} 35. Qxe6+ {[%clk 0:01:10]}  Kh7 {[%clk 0:00:06]} 36. f5 {[%clk 0:01:02]}  Rxd4 {[%clk 0:00:06]} 37. exd4 {[%clk 0:01:01]}  Qxd4+ {[%clk 0:00:06]} 38. Kh1 {[%clk 0:01:01]}  Qf4 {[%clk 0:00:03]} 39. Qg6+ {[%clk 0:01:01]}  Kg8 {[%clk 0:00:04]} 40. Rc8# {[%clk 0:01:02]} 1-0


[Site "https://www.chess.com"]

[Event "Titled Tuesday Blitz July 11 Late 2023"]
[White "Ibarra Jerez, Jose Carlos"]
[Black "Graif, William"]
[WhiteFideId "2226332"]
[BlackFideId "2609835"]
[WhiteElo "2918"]
[BlackElo "2538"]
[Result "1-0"]
[Round "2"]
[TimeControl "180+2"]
[Date "2023.07.11"]
[WhiteClock "0:00:04"]
[BlackClock "0:00:16"]
[Board "30"]

1. e4 {[%clk 0:02:59]}  e5 {[%clk 0:02:59]} 2. Nf3 {[%clk 0:02:59]}  Bc5 {[%clk 0:02:58]} 3. Nxe5 {[%clk 0:02:57]}  Nc6 {[%clk 0:02:57]} 4. Nf3 {[%clk 0:02:43]}  d5 {[%clk 0:02:57]} 5. exd5 {[%clk 0:02:36]}  Qxd5 {[%clk 0:02:57]} 6. Nc3 {[%clk 0:02:36]}  Qh5 {[%clk 0:02:57]} 7. Be2 {[%clk 0:02:34]}  Bg4 {[%clk 0:02:54]} 8. Ne4 {[%clk 0:02:30]}  O-O-O {[%clk 0:02:45]} 9. h3 {[%clk 0:02:30]}  Nf6 {[%clk 0:02:24]} 10. Nxc5 {[%clk 0:02:14]}  Bxf3 {[%clk 0:01:54]} 11. Bxf3 {[%clk 0:02:13]}  Qxc5 {[%clk 0:01:25]} 12. O-O {[%clk 0:02:12]}  h5 {[%clk 0:01:17]} 13. c3 {[%clk 0:02:10]}  g5 {[%clk 0:01:15]} 14. d4 {[%clk 0:02:10]}  Qf5 {[%clk 0:00:21]} 15. Bxc6 {[%clk 0:01:39]}  bxc6 {[%clk 0:00:21]} 16. Qf3 {[%clk 0:01:39]}  Qxf3 {[%clk 0:00:18]} 17. gxf3 {[%clk 0:01:40]}  g4 {[%clk 0:00:18]} 18. Bg5 {[%clk 0:01:40]}  Rd6 {[%clk 0:00:16]} 19. Bxf6 {[%clk 0:01:33]}  Rxf6 {[%clk 0:00:17]} 20. fxg4 {[%clk 0:01:34]}  hxg4 {[%clk 0:00:15]} 21. hxg4 {[%clk 0:01:34]}  Rfh6 {[%clk 0:00:08]} 22. Kg2 {[%clk 0:01:27]}  Rh2+ {[%clk 0:00:08]} 23. Kg3 {[%clk 0:01:27]}  R8h3+ {[%clk 0:00:06]} 24. Kf4 {[%clk 0:01:27]}  Rd3 {[%clk 0:00:06]} 25. Rae1 {[%clk 0:01:07]}  Rd2 {[%clk 0:00:06]} 26. Kg3 {[%clk 0:01:06]}  Rh7 {[%clk 0:00:05]} 27. b4 {[%clk 0:00:37]}  Rxa2 {[%clk 0:00:04]} 28. Re3 {[%clk 0:00:34]}  Kd7 {[%clk 0:00:02]} 29. Rfe1 {[%clk 0:00:34]}  Rc2 {[%clk 0:00:02]} 30. Rf3 {[%clk 0:00:32]}  Rg7 {[%clk 0:00:01]} 31. Re5 {[%clk 0:00:31]}  Kd6 {[%clk 0:00:02]} 32. Rc5 {[%clk 0:00:28]}  Rc1 {[%clk 0:00:02]} 33. Rf6+ {[%clk 0:00:27]}  Kd7 {[%clk 0:00:02]} 34. Rfxc6 {[%clk 0:00:27]}  Rg1+ {[%clk 0:00:03]} 35. Kf3 {[%clk 0:00:27]}  R1xg4 {[%clk 0:00:03]} 36. Rxc7+ {[%clk 0:00:28]}  Kd8 {[%clk 0:00:04]} 37. Rxa7 {[%clk 0:00:26]}  R4g6 {[%clk 0:00:04]} 38. b5 {[%clk 0:00:23]}  Rf6+ {[%clk 0:00:05]} 39. Ke3 {[%clk 0:00:23]}  Re6+ {[%clk 0:00:06]} 40. Re5 {[%clk 0:00:22]}  Rxe5+ {[%clk 0:00:05]} 41. dxe5 {[%clk 0:00:22]}  Rg6 {[%clk 0:00:05]} 42. c4 {[%clk 0:00:19]}  Re6 {[%clk 0:00:05]} 43. f4 {[%clk 0:00:19]}  Rb6 {[%clk 0:00:06]} 44. Rxf7 {[%clk 0:00:17]}  Rh6 {[%clk 0:00:06]} 45. Ke4 {[%clk 0:00:17]}  Rh3 {[%clk 0:00:06]} 46. c5 {[%clk 0:00:16]}  Rh1 {[%clk 0:00:07]} 47. b6 {[%clk 0:00:16]}  Re1+ {[%clk 0:00:08]} 48. Kd5 {[%clk 0:00:16]}  Rd1+ {[%clk 0:00:08]} 49. Kc6 {[%clk 0:00:16]}  Rc1 {[%clk 0:00:08]} 50. b7 {[%clk 0:00:14]}  Rb1 {[%clk 0:00:09]} 51. b8=Q+ {[%clk 0:00:13]}  Rxb8 {[%clk 0:00:08]} 52. Rf8+ {[%clk 0:00:14]}  Ke7 {[%clk 0:00:09]} 53. Rxb8 {[%clk 0:00:14]}  Ke6 {[%clk 0:00:10]} 54. Rd8 {[%clk 0:00:13]}  Kf5 {[%clk 0:00:11]} 55. Kd5 {[%clk 0:00:13]}  Kxf4 {[%clk 0:00:12]} 56. e6 {[%clk 0:00:13]}  Kf5 {[%clk 0:00:13]} 57. e7 {[%clk 0:00:14]}  Kf6 {[%clk 0:00:13]} 58. e8=Q {[%clk 0:00:14]}  Kf5 {[%clk 0:00:14]} 59. Qe5+ {[%clk 0:00:14]}  Kg4 {[%clk 0:00:14]} 60. Rg8+ {[%clk 0:00:14]}  Kf3 {[%clk 0:00:15]} 61. Rg3+ {[%clk 0:00:14]}  Kf2 {[%clk 0:00:16]} 62. Qe3+ {[%clk 0:00:13]}  Kf1 {[%clk 0:00:16]} 63. Rg1# {[%clk 0:00:04]} 1-0


[Site "https://www.chess.com"]

[Event "Titled Tuesday Blitz July 11 Late 2023"]
[White "Antipov, Mikhail Al."]
[Black "Hajiyev, Kanan"]
[WhiteFideId "4107012"]
[BlackFideId "13404148"]
[WhiteElo "2886"]
[BlackElo "2534"]
[Result "1-0"]
[Round "2"]
[TimeControl "180+2"]
[Date "2023.07.11"]
[WhiteClock "0:01:04"]
[BlackClock "0:00:00"]
[Board "34"]

1. e4 {[%clk 0:03:00]}  c6 {[%clk 0:02:59]} 2. d4 {[%clk 0:03:00]}  d5 {[%clk 0:03:00]} 3. exd5 {[%clk 0:03:01]}  cxd5 {[%clk 0:03:00]} 4. Bd3 {[%clk 0:03:02]}  Nc6 {[%clk 0:03:01]} 5. c3 {[%clk 0:03:02]}  Qc7 {[%clk 0:03:01]} 6. h3 {[%clk 0:03:02]}  Nf6 {[%clk 0:03:02]} 7. Nf3 {[%clk 0:03:02]}  g6 {[%clk 0:03:02]} 8. Qc2 {[%clk 0:03:00]}  Bg7 {[%clk 0:03:02]} 9. O-O {[%clk 0:03:00]}  O-O {[%clk 0:03:03]} 10. Re1 {[%clk 0:03:01]}  Be6 {[%clk 0:03:02]} 11. Be3 {[%clk 0:02:44]}  Rfc8 {[%clk 0:02:57]} 12. a3 {[%clk 0:02:41]}  Qd7 {[%clk 0:02:50]} 13. Qd1 {[%clk 0:02:36]}  Bf5 {[%clk 0:02:48]} 14. Bf1 {[%clk 0:02:36]}  Ne4 {[%clk 0:02:38]} 15. Nbd2 {[%clk 0:02:35]}  Nxd2 {[%clk 0:02:35]} 16. Qxd2 {[%clk 0:02:33]}  Na5 {[%clk 0:02:30]} 17. Rad1 {[%clk 0:02:29]}  Qa4 {[%clk 0:02:10]} 18. Bh6 {[%clk 0:02:23]}  Re8 {[%clk 0:01:12]} 19. Bxg7 {[%clk 0:02:15]}  Kxg7 {[%clk 0:01:12]} 20. g4 {[%clk 0:02:03]}  Bc2 {[%clk 0:01:03]} 21. Bb5 {[%clk 0:01:51]}  Qxb5 {[%clk 0:00:47]} 22. Qxc2 {[%clk 0:01:51]}  Nc4 {[%clk 0:00:38]} 23. Re2 {[%clk 0:01:49]}  a5 {[%clk 0:00:34]} 24. Rde1 {[%clk 0:01:48]}  e6 {[%clk 0:00:33]} 25. Qc1 {[%clk 0:01:40]}  Qb6 {[%clk 0:00:27]} 26. h4 {[%clk 0:01:27]}  a4 {[%clk 0:00:17]} 27. Kg2 {[%clk 0:01:26]}  Ra5 {[%clk 0:00:11]} 28. h5 {[%clk 0:01:12]}  Rb5 {[%clk 0:00:12]} 29. hxg6 {[%clk 0:01:12]}  hxg6 {[%clk 0:00:11]} 30. Rh1 {[%clk 0:01:04]}  Rh8 {[%clk 0:00:09]} 31. Rxh8 {[%clk 0:01:03]}  Kxh8 {[%clk 0:00:10]} 32. Qh6+ {[%clk 0:01:03]}  Kg8 {[%clk 0:00:00]} 33. Ng5 {[%clk 0:01:04]} 1-0


[Site "https://www.chess.com"]